[Event "Elite Hotels Open 2024"]
[Site "Elite Stadshotellet, Kungsgatan 6, Vaxjo, Sweden"]
[Date "2024.02.11"]
[Round "7.3"]
[White "Sorensen, Hampus"]
[Black "Grahn, Vidar"]
[Result "1/2-1/2"]
[TimeControl "15 minutes + 5 seconds per move from move one (Round 1 - 4) / 90 minutes + 30 seconds per move from move one (Round 5 - 8)"]
[WhiteTitle "IM"]
[WhiteFideId "8703884"]
[BlackFideId "1744780"]
[WhiteElo "2430"]
[BlackElo "2234"]

1. e4 {[%clk 01:29:54]} {[%emt 00:01:05]} c5 {[%clk 01:30:56]} {[%emt
00:00:04]} 2. Nf3 {[%clk 01:30:22]} {[%emt 00:00:03]} e6 {[%clk 01:31:22]}
{[%emt 00:00:04]} 3. c3 {[%clk 01:30:49]} {[%emt 00:00:02]} Nf6 {[%clk
01:31:48]} {[%emt 00:00:04]} 4. e5 {[%clk 01:31:15]} {[%emt 00:00:04]} Nd5
{[%clk 01:32:15]} {[%emt 00:00:03]} 5. a3 {[%clk 01:31:42]} {[%emt 00:00:04]}
d6 {[%clk 01:31:46]} {[%emt 00:00:59]} 6. d4 {[%clk 01:31:50]} {[%emt
00:00:22]} cxd4 {[%clk 01:32:09]} {[%emt 00:00:06]} 7. c4 {[%clk 01:32:05]}
{[%emt 00:00:15]} Nc7 {[%clk 01:30:07]} {[%emt 00:02:32]} 8. Qxd4 {[%clk
01:28:09]} {[%emt 00:04:26]} Nc6 {[%clk 01:29:32]} {[%emt 00:01:05]} 9. Qc3
{[%clk 01:28:34]} {[%emt 00:00:05]} dxe5 {[%clk 01:27:05]} {[%emt 00:02:58]} 10.
Nxe5 {[%clk 01:28:28]} {[%emt 00:00:35]} Nxe5 {[%clk 01:26:42]} {[%emt
00:00:53]} 11. Qxe5 {[%clk 01:28:56]} {[%emt 00:00:02]} f6 {[%clk 01:25:20]}
{[%emt 00:01:53]} 12. Qg3 {[%clk 01:11:02]} {[%emt 00:18:23]} Qd6 {[%clk
01:19:18]} {[%emt 00:06:31]} 13. Bf4 {[%clk 00:59:00]} {[%emt 00:12:33]} e5
{[%clk 01:19:41]} {[%emt 00:00:07]} 14. Be3 {[%clk 00:59:26]} {[%emt 00:00:04]}
f5 {[%clk 01:13:33]} {[%emt 00:06:38]} 15. f4 {[%clk 00:57:27]} {[%emt
00:02:29]} e4 {[%clk 01:12:00]} {[%emt 00:02:03]} 16. Nc3 {[%clk 00:56:46]}
{[%emt 00:01:11]} Be6 {[%clk 01:02:22]} {[%emt 00:10:08]} 17. b4 {[%clk
00:54:59]} {[%emt 00:02:17]} g6 {[%clk 00:57:15]} {[%emt 00:05:36]} 18. Rd1
{[%clk 00:43:07]} {[%emt 00:12:22]} Qe7 {[%clk 00:56:53]} {[%emt 00:00:53]} 19.
Nd5 {[%clk 00:42:17]} {[%emt 00:01:21]} Qf7 {[%clk 00:55:31]} {[%emt 00:01:52]}
20. Nf6+ {[%clk 00:41:22]} {[%emt 00:01:24]} Qxf6 {[%clk 00:53:59]} {[%emt
00:02:02]} 21. Bd4 {[%clk 00:41:48]} {[%emt 00:00:04]} Bxb4+ {[%clk 00:51:38]}
{[%emt 00:02:51]} 22. axb4 {[%clk 00:41:54]} {[%emt 00:00:24]} Qf8 {[%clk
00:52:03]} {[%emt 00:00:05]} 23. Bxh8 {[%clk 00:40:19]} {[%emt 00:02:05]} Qxh8
{[%clk 00:52:28]} {[%emt 00:00:05]} 24. Qa3 {[%clk 00:39:07]} {[%emt 00:01:41]}
Rd8 {[%clk 00:51:02]} {[%emt 00:01:56]} 25. Rxd8+ {[%clk 00:36:24]} {[%emt
00:03:14]} Kxd8 {[%clk 00:50:56]} {[%emt 00:00:36]} 26. Kf2 {[%clk 00:26:59]}
{[%emt 00:09:54]} Qd4+ {[%clk 00:48:46]} {[%emt 00:02:41]} 27. Qe3 {[%clk
00:27:19]} {[%emt 00:00:09]} Qb2+ {[%clk 00:49:03]} {[%emt 00:00:13]} 28. Kg3
{[%clk 00:26:50]} {[%emt 00:01:00]} Qxb4 {[%clk 00:48:42]} {[%emt 00:00:51]} 29.
Be2 {[%clk 00:25:36]} {[%emt 00:01:43]} b6 {[%clk 00:42:29]} {[%emt 00:06:43]}
30. Ra1 {[%clk 00:20:47]} {[%emt 00:05:19]} a5 {[%clk 00:41:09]} {[%emt
00:01:50]} 31. h3 {[%clk 00:17:08]} {[%emt 00:04:07]} Kc8 {[%clk 00:39:12]}
{[%emt 00:02:29]} 32. Kh2 {[%clk 00:15:03]} {[%emt 00:02:35]} Kb7 {[%clk
00:39:21]} {[%emt 00:00:21]} 33. Qd4 {[%clk 00:14:55]} {[%emt 00:00:37]} Kc6
{[%clk 00:32:28]} {[%emt 00:07:24]} 34. Ra2 {[%clk 00:14:15]} {[%emt 00:01:11]}
Qd6 {[%clk 00:31:49]} {[%emt 00:01:09]} 35. Qe3 {[%clk 00:10:33]} {[%emt
00:04:12]} Qc5 {[%clk 00:31:58]} {[%emt 00:00:21]} 36. Qc3 {[%clk 00:10:19]}
{[%emt 00:00:44]} Ne8 {[%clk 00:25:01]} {[%emt 00:07:26]} 37. Qh8 {[%clk
00:06:43]} {[%emt 00:04:07]} Nd6 {[%clk 00:25:01]} {[%emt 00:00:30]} 38. Qxh7
{[%clk 00:04:14]} {[%emt 00:03:00]} Qe3 {[%clk 00:23:50]} {[%emt 00:01:40]} 39.
Qxg6 {[%clk 00:02:31]} {[%emt 00:02:14]} Qxf4+ {[%clk 00:23:49]} {[%emt
00:00:30]} 40. Kh1 {[%clk 00:01:21]} {[%emt 00:01:40]} Qc1+ {[%clk 00:24:00]}
{[%emt 00:00:17]} 41. Kh2 {[%clk 00:01:50]} {[%emt 00:00:03]} Qf4+ {[%clk
00:23:47]} {[%emt 00:00:42]} 42. Kh1 {[%clk 00:01:59]} {[%emt 00:00:22]} Qc1+
{[%clk 00:21:55]} {[%emt 00:02:22]} 43. Kh2 {[%clk 00:02:28]} Qf4+ {[%clk
00:22:22]} {[%emt 00:00:03]} 1/2-1/2

[Event "Elite Hotels Open 2024"]
[Site "Elite Stadshotellet, Kungsgatan 6, Vaxjo, Sweden"]
[Date "2024.02.11"]
[Round "7.4"]
[White "Fransson, Jorgen"]
[Black "Jepson, Christian"]
[Result "0-1"]
[TimeControl "15 minutes + 5 seconds per move from move one (Round 1 - 4) / 90 minutes + 30 seconds per move from move one (Round 5 - 8)"]
[BlackTitle "IM"]
[WhiteFideId "1701827"]
[BlackFideId "1701185"]
[WhiteElo "2134"]
[BlackElo "2386"]

1. c4 {[%clk 01:27:03]} {[%emt 00:03:56]} e6 {[%clk 01:30:48]} {[%emt
00:00:12]} 2. Nf3 {[%clk 01:27:00]} {[%emt 00:00:33]} d5 {[%clk 01:31:13]}
{[%emt 00:00:05]} 3. d4 {[%clk 01:27:18]} {[%emt 00:00:11]} Nf6 {[%clk
01:31:22]} {[%emt 00:00:21]} 4. e3 {[%clk 01:27:31]} {[%emt 00:00:17]} a6
{[%clk 01:27:57]} {[%emt 00:03:56]} 5. b3 {[%clk 01:27:06]} {[%emt 00:00:55]}
c5 {[%clk 01:25:49]} {[%emt 00:02:38]} 6. Bd3 {[%clk 01:27:15]} {[%emt
00:00:21]} cxd4 {[%clk 01:24:13]} {[%emt 00:02:06]} 7. exd4 {[%clk 01:27:25]}
{[%emt 00:00:19]} Nc6 {[%clk 01:22:57]} {[%emt 00:01:47]} 8. Bb2 {[%clk
01:23:44]} {[%emt 00:04:10]} dxc4 {[%clk 01:02:28]} {[%emt 00:20:59]} 9. bxc4
{[%clk 01:23:45]} {[%emt 00:00:30]} Be7 {[%clk 01:02:53]} {[%emt 00:00:05]} 10.
O-O {[%clk 01:23:11]} {[%emt 00:01:04]} O-O {[%clk 01:03:02]} {[%emt 00:00:20]}
11. Nbd2 {[%clk 01:20:32]} {[%emt 00:03:09]} b6 {[%clk 00:56:38]} {[%emt
00:06:55]} 12. Rc1 {[%clk 01:19:25]} {[%emt 00:01:37]} Bb7 {[%clk 00:56:40]}
{[%emt 00:00:28]} 13. Qe2 {[%clk 01:19:15]} {[%emt 00:00:39]} Re8 {[%clk
00:53:38]} {[%emt 00:03:32]} 14. Bb1 {[%clk 01:14:35]} {[%emt 00:05:10]} Rc8
{[%clk 00:39:48]} {[%emt 00:14:20]} 15. Qd3 {[%clk 01:06:55]} {[%emt 00:08:10]}
b5 {[%clk 00:33:47]} {[%emt 00:06:32]} 16. cxb5 {[%clk 01:02:32]} {[%emt
00:04:52]} Nb4 {[%clk 00:33:59]} {[%emt 00:00:17]} 17. Rxc8 {[%clk 00:58:13]}
{[%emt 00:04:50]} Qxc8 {[%clk 00:34:05]} {[%emt 00:00:23]} 18. Qe2 {[%clk
00:51:21]} {[%emt 00:07:22]} axb5 {[%clk 00:33:30]} {[%emt 00:01:07]} 19. a3
{[%clk 00:50:51]} {[%emt 00:00:59]} Nbd5 {[%clk 00:29:37]} {[%emt 00:04:22]} 20.
Rc1 {[%clk 00:43:20]} {[%emt 00:07:59]} Qa8 {[%clk 00:27:34]} {[%emt 00:02:34]}
21. Qxb5 {[%clk 00:27:07]} {[%emt 00:16:44]} Rb8 {[%clk 00:26:31]} {[%emt
00:01:33]} 22. Rc2 {[%clk 00:26:42]} {[%emt 00:00:55]} Bc8 {[%clk 00:07:10]}
{[%emt 00:19:52]} 23. Qc4 {[%clk 00:25:03]} {[%emt 00:02:08]} Bd7 {[%clk
00:05:47]} {[%emt 00:01:54]} 24. Bc1 {[%clk 00:24:55]} {[%emt 00:00:37]} Bb5
{[%clk 00:01:51]} {[%emt 00:04:26]} 25. Qa2 {[%clk 00:25:08]} {[%emt 00:00:17]}
Bd3 {[%clk 00:01:50]} {[%emt 00:00:31]} 26. Rb2 {[%clk 00:24:30]} {[%emt
00:01:07]} Nc3 {[%clk 00:02:11]} {[%emt 00:00:10]} 27. Qa1 {[%clk 00:24:14]}
{[%emt 00:00:46]} Ne2+ {[%clk 00:02:27]} {[%emt 00:00:14]} 28. Kh1 {[%clk
00:24:39]} {[%emt 00:00:05]} Nxc1 {[%clk 00:01:50]} {[%emt 00:01:07]} 29. a4
{[%clk 00:20:26]} {[%emt 00:04:43]} Rxb2 {[%clk 00:01:08]} {[%emt 00:01:12]} 30.
Qxb2 {[%clk 00:20:51]} {[%emt 00:00:05]} Bxb1 {[%clk 00:01:22]} {[%emt
00:00:16]} 31. Qxb1 {[%clk 00:21:14]} {[%emt 00:00:07]} Ne2 {[%clk 00:01:39]}
{[%emt 00:00:13]} 32. Qb5 {[%clk 00:21:29]} {[%emt 00:00:16]} Nc3 {[%clk
00:01:55]} {[%emt 00:00:13]} 0-1

[Event "Elite Hotels Open 2024"]
[Site "Elite Stadshotellet, Kungsgatan 6, Vaxjo, Sweden"]
[Date "2024.02.11"]
[Round "7.5"]
[White "Muntean, Victor"]
[Black "Lindberg, Bengt"]
[Result "1/2-1/2"]
[TimeControl "15 minutes + 5 seconds per move from move one (Round 1 - 4) / 90 minutes + 30 seconds per move from move one (Round 5 - 8)"]
[BlackTitle "IM"]
[WhiteFideId "1054414"]
[BlackFideId "1700359"]
[WhiteElo "2106"]
[BlackElo "2331"]

1. e4 {[%clk 01:30:57]} {[%emt 00:00:02]} c5 {[%clk 01:30:15]} {[%emt
00:00:43]} 2. c3 {[%clk 01:31:21]} {[%emt 00:00:09]} e6 {[%clk 01:30:31]}
{[%emt 00:00:14]} 3. d4 {[%clk 01:31:38]} {[%emt 00:00:13]} d5 {[%clk
01:30:49]} {[%emt 00:00:11]} 4. e5 {[%clk 01:32:02]} {[%emt 00:00:08]} Nc6
{[%clk 01:31:04]} {[%emt 00:00:13]} 5. Nf3 {[%clk 01:32:26]} {[%emt 00:00:07]}
Bd7 {[%clk 01:31:24]} {[%emt 00:00:10]} 6. Bd3 {[%clk 01:32:04]} {[%emt
00:00:51]} Rc8 {[%clk 01:31:29]} {[%emt 00:00:23]} 7. O-O {[%clk 01:30:02]}
{[%emt 00:02:34]} cxd4 {[%clk 01:31:40]} {[%emt 00:00:19]} 8. cxd4 {[%clk
01:27:19]} {[%emt 00:03:14]} Nb4 {[%clk 01:32:00]} {[%emt 00:00:09]} 9. Nc3
{[%clk 01:27:05]} {[%emt 00:00:45]} Nxd3 {[%clk 01:32:10]} {[%emt 00:00:19]} 10.
Qxd3 {[%clk 01:27:29]} {[%emt 00:00:06]} Ne7 {[%clk 01:32:29]} {[%emt
00:00:10]} 11. Nd2 {[%clk 01:18:32]} {[%emt 00:09:29]} Nf5 {[%clk 01:24:40]}
{[%emt 00:08:18]} 12. Nb3 {[%clk 01:13:34]} {[%emt 00:05:29]} Be7 {[%clk
01:16:58]} {[%emt 00:08:10]} 13. Be3 {[%clk 01:07:31]} {[%emt 00:06:34]} O-O
{[%clk 01:13:48]} {[%emt 00:03:40]} 14. f4 {[%clk 01:04:44]} {[%emt 00:03:17]}
h5 {[%clk 01:07:41]} {[%emt 00:06:36]} 15. Rac1 {[%clk 01:00:04]} {[%emt
00:05:11]} b6 {[%clk 01:00:32]} {[%emt 00:07:39]} 16. Bf2 {[%clk 00:58:27]}
{[%emt 00:02:08]} Rc4 {[%clk 00:51:53]} {[%emt 00:09:08]} 17. Rc2 {[%clk
00:50:52]} {[%emt 00:08:06]} Qb8 {[%clk 00:48:11]} {[%emt 00:04:11]} 18. Rfc1
{[%clk 00:47:15]} {[%emt 00:04:08]} Rfc8 {[%clk 00:48:31]} {[%emt 00:00:10]} 19.
Nd2 {[%clk 00:47:20]} {[%emt 00:00:25]} R4c7 {[%clk 00:48:39]} {[%emt
00:00:21]} 20. Ne2 {[%clk 00:44:25]} {[%emt 00:03:26]} Rxc2 {[%clk 00:45:44]}
{[%emt 00:03:25]} 21. Rxc2 {[%clk 00:44:48]} {[%emt 00:00:07]} Rxc2 {[%clk
00:45:28]} {[%emt 00:00:46]} 22. Qxc2 {[%clk 00:45:13]} {[%emt 00:00:05]} g6
{[%clk 00:45:34]} {[%emt 00:00:23]} 23. Ng3 {[%clk 00:44:02]} {[%emt 00:01:41]}
Ng7 {[%clk 00:45:50]} {[%emt 00:00:14]} 24. Nf3 {[%clk 00:43:06]} {[%emt
00:01:27]} Qb7 {[%clk 00:44:32]} {[%emt 00:01:47]} 25. h3 {[%clk 00:42:27]}
{[%emt 00:01:09]} Ne8 {[%clk 00:43:27]} {[%emt 00:01:34]} 26. Nf1 {[%clk
00:41:18]} {[%emt 00:01:39]} Qc6 {[%clk 00:36:48]} {[%emt 00:07:09]} 27. Qxc6
{[%clk 00:41:11]} {[%emt 00:00:38]} Bxc6 {[%clk 00:37:16]} {[%emt 00:00:02]} 28.
Bh4 {[%clk 00:41:24]} {[%emt 00:00:17]} Bf8 {[%clk 00:37:03]} {[%emt 00:00:42]}
29. Bd8 {[%clk 00:41:05]} {[%emt 00:00:49]} Bb5 {[%clk 00:36:56]} {[%emt
00:00:36]} 30. Ne3 {[%clk 00:39:58]} {[%emt 00:01:38]} Bd3 {[%clk 00:35:53]}
{[%emt 00:01:32]} 31. a3 {[%clk 00:37:53]} {[%emt 00:02:38]} Bg7 {[%clk
00:29:09]} {[%emt 00:07:12]} 32. Kf2 {[%clk 00:34:54]} {[%emt 00:03:30]} f6
{[%clk 00:27:30]} {[%emt 00:02:08]} 33. g4 {[%clk 00:31:07]} {[%emt 00:04:18]}
Be4 {[%clk 00:25:44]} {[%emt 00:02:14]} 34. Nd2 {[%clk 00:28:37]} {[%emt
00:03:02]} Bd3 {[%clk 00:24:05]} {[%emt 00:02:07]} 35. Nd1 {[%clk 00:19:54]}
{[%emt 00:09:14]} Kf7 {[%clk 00:22:24]} {[%emt 00:02:11]} 36. Ke3 {[%clk
00:19:03]} {[%emt 00:01:22]} Ba6 {[%clk 00:22:37]} {[%emt 00:00:16]} 37. Nf3
{[%clk 00:17:14]} {[%emt 00:02:19]} hxg4 {[%clk 00:15:46]} {[%emt 00:07:22]} 38.
hxg4 {[%clk 00:17:32]} {[%emt 00:00:11]} Bc8 {[%clk 00:16:13]} {[%emt
00:00:03]} 39. Nc3 {[%clk 00:14:16]} {[%emt 00:03:47]} Bd7 {[%clk 00:10:18]}
{[%emt 00:06:25]} 40. b4 {[%clk 00:14:25]} {[%emt 00:00:21]} f5 {[%clk
00:09:54]} {[%emt 00:00:53]} 41. gxf5 {[%clk 00:13:37]} {[%emt 00:01:18]} gxf5
{[%clk 00:10:16]} {[%emt 00:00:08]} 42. Ng5+ {[%clk 00:12:18]} {[%emt
00:01:49]} Kg6 {[%clk 00:10:22]} {[%emt 00:00:24]} 43. a4 {[%clk 00:08:44]}
{[%emt 00:04:05]} Bf8 {[%clk 00:10:28]} {[%emt 00:00:23]} 44. Na2 {[%clk
00:09:11]} {[%emt 00:00:04]} Bh6 {[%clk 00:07:27]} {[%emt 00:03:31]} 45. a5
{[%clk 00:08:20]} {[%emt 00:01:22]} bxa5 {[%clk 00:07:16]} {[%emt 00:00:41]} 46.
bxa5 {[%clk 00:08:44]} {[%emt 00:00:05]} Bxg5 {[%clk 00:06:50]} {[%emt
00:00:55]} 47. fxg5 {[%clk 00:09:11]} {[%emt 00:00:04]} a6 {[%clk 00:05:41]}
{[%emt 00:01:39]} 48. Nc1 {[%clk 00:08:27]} {[%emt 00:01:14]} Ng7 {[%clk
00:04:47]} {[%emt 00:01:24]} 49. Nd3 {[%clk 00:07:40]} {[%emt 00:01:17]} Nh5
{[%clk 00:04:18]} {[%emt 00:00:58]} 50. Kf3 {[%clk 00:07:15]} {[%emt 00:00:55]}
f4 {[%clk 00:03:18]} {[%emt 00:01:30]} 51. Nc5 {[%clk 00:05:44]} {[%emt
00:02:02]} Bc8 {[%clk 00:03:46]} {[%emt 00:00:02]} 52. Kg4 {[%clk 00:05:56]}
{[%emt 00:00:18]} Ng7 {[%clk 00:02:15]} {[%emt 00:02:00]} 53. Kxf4 {[%clk
00:05:43]} {[%emt 00:00:43]} Nf5 {[%clk 00:02:43]} {[%emt 00:00:02]} 54. Nb3
{[%clk 00:05:39]} {[%emt 00:00:34]} Kh5 {[%clk 00:02:24]} {[%emt 00:00:49]} 55.
Bb6 {[%clk 00:05:42]} {[%emt 00:00:27]} Ne7 {[%clk 00:02:14]} {[%emt 00:00:40]}
56. Bd8 {[%clk 00:05:20]} {[%emt 00:00:53]} Nf5 {[%clk 00:02:23]} {[%emt
00:00:20]} 57. Kf3 {[%clk 00:04:26]} {[%emt 00:01:24]} Kg6 {[%clk 00:02:41]}
{[%emt 00:00:11]} 58. Ke2 {[%clk 00:04:21]} {[%emt 00:00:35]} Ng3+ {[%clk
00:00:44]} {[%emt 00:02:27]} 59. Kd3 {[%clk 00:02:25]} {[%emt 00:02:27]} Ne4
{[%clk 00:01:11]} {[%emt 00:00:02]} 60. Nc1 {[%clk 00:02:32]} {[%emt 00:00:24]}
Bd7 {[%clk 00:01:02]} {[%emt 00:00:39]} 61. Kc2 {[%clk 00:02:29]} {[%emt
00:00:33]} Bb5 {[%clk 00:01:08]} {[%emt 00:00:24]} 62. Na2 {[%clk 00:01:43]}
{[%emt 00:01:16]} Ba4+ {[%clk 00:00:37]} {[%emt 00:01:01]} 63. Kb2 {[%clk
00:02:01]} {[%emt 00:00:12]} Bb5 {[%clk 00:00:58]} {[%emt 00:00:08]} 64. Nb4
{[%clk 00:01:59]} {[%emt 00:00:32]} Kf5 {[%clk 00:00:43]} {[%emt 00:00:45]} 65.
Nc2 {[%clk 00:01:59]} {[%emt 00:00:30]} Kg6 {[%clk 00:00:58]} {[%emt 00:00:15]}
66. Ne3 {[%clk 00:02:11]} {[%emt 00:00:19]} Ng3 {[%clk 00:01:04]} {[%emt
00:00:23]} 67. Ng2 {[%clk 00:01:49]} {[%emt 00:00:52]} Be8 {[%clk 00:00:39]}
{[%emt 00:00:55]} 68. Nf4+ {[%clk 00:01:26]} {[%emt 00:00:54]} Kf5 {[%clk
00:01:06]} {[%emt 00:00:02]} 69. Nd3 {[%clk 00:00:54]} {[%emt 00:01:02]} Bb5
{[%clk 00:01:02]} {[%emt 00:00:34]} 70. Nc5 {[%clk 00:01:12]} {[%emt 00:00:12]}
Ne2 {[%clk 00:00:33]} {[%emt 00:00:59]} 71. g6 {[%clk 00:01:19]} {[%emt
00:00:23]} Kxg6 {[%clk 00:01:00]} {[%emt 00:00:04]} 72. Nxe6 {[%clk 00:01:46]}
{[%emt 00:00:03]} Kf5 {[%clk 00:00:37]} {[%emt 00:00:53]} 73. Ng7+ {[%clk
00:01:47]} {[%emt 00:00:28]} Kg6 {[%clk 00:00:56]} {[%emt 00:00:11]} 74. Ne6
{[%clk 00:02:06]} {[%emt 00:00:11]} Kf5 {[%clk 00:01:25]} {[%emt 00:00:02]} 75.
Nc7 {[%clk 00:01:25]} {[%emt 00:01:11]} Nxd4 {[%clk 00:01:12]} {[%emt
00:00:42]} 76. Bf6 {[%clk 00:01:50]} {[%emt 00:00:05]} Bc4 {[%clk 00:01:03]}
{[%emt 00:00:39]} 77. Bg7 {[%clk 00:02:02]} {[%emt 00:00:19]} Ne6 {[%clk
00:00:57]} {[%emt 00:00:35]} 78. Nxe6 {[%clk 00:02:27]} {[%emt 00:00:05]} Kxe6
{[%clk 00:01:23]} {[%emt 00:00:04]} 79. Kc3 {[%clk 00:02:54]} {[%emt 00:00:04]}
1/2-1/2

[Event "Elite Hotels Open 2024"]
[Site "Elite Stadshotellet, Kungsgatan 6, Vaxjo, Sweden"]
[Date "2024.02.11"]
[Round "7.6"]
[White "Frisk, Ellinor"]
[Black "Johansson, Linus"]
[Result "0-1"]
[TimeControl "15 minutes + 5 seconds per move from move one (Round 1 - 4) / 90 minutes + 30 seconds per move from move one (Round 5 - 8)"]
[WhiteTitle "WIM"]
[BlackTitle "IM"]
[WhiteFideId "1708481"]
[BlackFideId "1711113"]
[WhiteElo "2141"]
[BlackElo "2434"]

1. d4 {[%clk 01:30:53]} {[%emt 00:00:07]} Nf6 {[%clk 01:30:55]} {[%emt
00:00:04]} 2. c4 {[%clk 01:31:14]} {[%emt 00:00:10]} e6 {[%clk 01:31:21]}
{[%emt 00:00:04]} 3. Nc3 {[%clk 01:31:38]} {[%emt 00:00:06]} Bb4 {[%clk
01:31:38]} {[%emt 00:00:13]} 4. e3 {[%clk 01:31:57]} {[%emt 00:00:11]} O-O
{[%clk 01:32:01]} {[%emt 00:00:06]} 5. Nge2 {[%clk 01:32:00]} {[%emt 00:00:28]}
Re8 {[%clk 01:32:12]} {[%emt 00:00:19]} 6. a3 {[%clk 01:32:16]} {[%emt
00:00:15]} Bf8 {[%clk 01:32:38]} {[%emt 00:00:04]} 7. Ng3 {[%clk 01:30:03]}
{[%emt 00:02:43]} d5 {[%clk 01:32:24]} {[%emt 00:00:43]} 8. Be2 {[%clk
01:30:29]} {[%emt 00:00:06]} a6 {[%clk 01:04:54]} {[%emt 00:27:59]} 9. O-O
{[%clk 01:26:09]} {[%emt 00:04:49]} c5 {[%clk 01:05:19]} {[%emt 00:00:05]} 10.
dxc5 {[%clk 01:24:36]} {[%emt 00:02:04]} Bxc5 {[%clk 01:05:18]} {[%emt
00:00:30]} 11. Qc2 {[%clk 01:20:58]} {[%emt 00:04:09]} dxc4 {[%clk 01:04:16]}
{[%emt 00:01:32]} 12. Nge4 {[%clk 01:07:56]} {[%emt 00:13:32]} Bf8 {[%clk
00:59:43]} {[%emt 00:05:03]} 13. Nxf6+ {[%clk 01:06:07]} {[%emt 00:02:20]} Qxf6
{[%clk 01:00:07]} {[%emt 00:00:06]} 14. Bxc4 {[%clk 01:06:23]} {[%emt
00:00:14]} Nd7 {[%clk 00:57:14]} {[%emt 00:03:23]} 15. Bd3 {[%clk 01:02:44]}
{[%emt 00:04:08]} Qh4 {[%clk 00:57:04]} {[%emt 00:00:40]} 16. g3 {[%clk
00:59:07]} {[%emt 00:04:08]} Qh5 {[%clk 00:49:48]} {[%emt 00:07:45]} 17. Be2
{[%clk 00:57:25]} {[%emt 00:02:13]} Qc5 {[%clk 00:47:19]} {[%emt 00:02:59]} 18.
b3 {[%clk 00:46:06]} {[%emt 00:11:49]} Qc6 {[%clk 00:36:06]} {[%emt 00:11:42]}
19. Bb2 {[%clk 00:45:43]} {[%emt 00:00:54]} b5 {[%clk 00:36:18]} {[%emt
00:00:18]} 20. Bd3 {[%clk 00:34:40]} {[%emt 00:11:33]} f5 {[%clk 00:35:44]}
{[%emt 00:01:04]} 21. Ne2 {[%clk 00:34:12]} {[%emt 00:00:58]} Nc5 {[%clk
00:21:38]} {[%emt 00:14:37]} 22. Nd4 {[%clk 00:32:14]} {[%emt 00:02:29]} Qd7
{[%clk 00:21:27]} {[%emt 00:00:40]} 23. Be2 {[%clk 00:30:42]} {[%emt 00:02:02]}
e5 {[%clk 00:21:12]} {[%emt 00:00:45]} 24. Bf3 {[%clk 00:21:35]} {[%emt
00:09:38]} e4 {[%clk 00:20:14]} {[%emt 00:01:28]} 25. Be2 {[%clk 00:20:38]}
{[%emt 00:01:26]} Bb7 {[%clk 00:20:43]} {[%emt 00:00:01]} 26. Rfd1 {[%clk
00:20:44]} {[%emt 00:00:24]} Rac8 {[%clk 00:19:34]} {[%emt 00:01:39]} 27. Qd2
{[%clk 00:16:05]} {[%emt 00:05:09]} Qd5 {[%clk 00:15:14]} {[%emt 00:04:49]} 28.
b4 {[%clk 00:13:45]} {[%emt 00:02:51]} Nd3 {[%clk 00:14:48]} {[%emt 00:00:56]}
29. Bxd3 {[%clk 00:13:46]} {[%emt 00:00:29]} exd3 {[%clk 00:15:13]} {[%emt
00:00:05]} 30. f3 {[%clk 00:14:01]} {[%emt 00:00:15]} Rc2 {[%clk 00:12:04]}
{[%emt 00:03:39]} 31. Nxc2 {[%clk 00:13:33]} {[%emt 00:00:58]} Qxf3 {[%clk
00:12:29]} {[%emt 00:00:05]} 32. Rf1 {[%clk 00:12:17]} {[%emt 00:01:45]} Qh1+
{[%clk 00:12:14]} {[%emt 00:00:45]} 33. Kf2 {[%clk 00:12:46]} {[%emt 00:00:02]}
Qxh2+ {[%clk 00:10:36]} {[%emt 00:02:08]} 34. Ke1 {[%clk 00:13:09]} {[%emt
00:00:07]} Qxg3+ {[%clk 00:11:02]} {[%emt 00:00:04]} 35. Qf2 {[%clk 00:10:10]}
{[%emt 00:03:29]} Qxf2+ {[%clk 00:11:27]} {[%emt 00:00:05]} 36. Rxf2 {[%clk
00:10:21]} {[%emt 00:00:19]} dxc2 {[%clk 00:11:49]} {[%emt 00:00:08]} 37. Rxc2
{[%clk 00:10:43]} {[%emt 00:00:08]} Rxe3+ {[%clk 00:11:46]} {[%emt 00:00:33]}
38. Re2 {[%clk 00:06:51]} {[%emt 00:04:22]} Rh3 {[%clk 00:11:27]} {[%emt
00:00:48]} 39. Rc1 {[%clk 00:06:03]} {[%emt 00:01:18]} Rh1+ {[%clk 00:06:49]}
{[%emt 00:05:09]} 40. Kf2 {[%clk 00:06:18]} {[%emt 00:00:14]} Rxc1 {[%clk
00:06:47]} {[%emt 00:00:32]} 41. Bxc1 {[%clk 00:06:47]} {[%emt 00:00:02]} Kf7
{[%clk 00:06:41]} {[%emt 00:00:35]} 42. Rc2 {[%clk 00:06:04]} {[%emt 00:01:13]}
Bd6 {[%clk 00:07:00]} {[%emt 00:00:11]} 43. Be3 {[%clk 00:05:24]} {[%emt
00:01:10]} Ke6 {[%clk 00:05:46]} {[%emt 00:01:44]} 44. Bb6 {[%clk 00:04:35]}
{[%emt 00:01:19]} g5 {[%clk 00:05:08]} {[%emt 00:01:08]} 45. Bc7 {[%clk
00:04:40]} {[%emt 00:00:26]} Be4 {[%clk 00:05:17]} {[%emt 00:00:21]} 46. Rc3
{[%clk 00:03:55]} {[%emt 00:01:14]} h5 {[%clk 00:04:05]} {[%emt 00:01:41]} 47.
Bxd6 {[%clk 00:04:00]} {[%emt 00:00:25]} Kxd6 {[%clk 00:04:34]} 48. Rc8 {[%clk
00:04:15]} {[%emt 00:00:15]} Ke5 {[%clk 00:04:08]} {[%emt 00:00:57]} 49. Rh8
{[%clk 00:03:42]} {[%emt 00:01:01]} h4 {[%clk 00:04:20]} {[%emt 00:00:19]} 50.
Rh6 {[%clk 00:03:39]} {[%emt 00:00:33]} f4 {[%clk 00:03:25]} {[%emt 00:01:25]}
51. Rxa6 {[%clk 00:03:39]} {[%emt 00:00:31]} g4 {[%clk 00:03:19]} {[%emt
00:00:35]} 52. Ra5 {[%clk 00:02:58]} {[%emt 00:01:11]} g3+ {[%clk 00:03:22]}
{[%emt 00:00:27]} 53. Ke2 {[%clk 00:02:25]} {[%emt 00:01:02]} h3 {[%clk
00:03:13]} {[%emt 00:00:40]} 54. Rxb5+ {[%clk 00:02:48]} {[%emt 00:00:07]} Bd5
{[%clk 00:03:35]} {[%emt 00:00:07]} 0-1